bitfinex-derivatives/quotes_ETHF0:USTF0_20240925
["timestamp","ask_amount","ask_price","bid_price","bid_amount"]
[1727299073211,0.38691,2584.7,2584.3,4.9948]
[1727299076134,0.38689,2584.8,2584.3,4.9948]
[1727299076327,3.9702,2584.9,2584.3,4.9948]
[1727299076328,0.38692,2584.7,2584.3,4.9948]
[1727299079125,0.38692,2584.7,2584.3,3.5948]
[1727299079325,0.38692,2584.7,2584.3,0.387]
[1727299079326,3.2078,2584.5,2584.3,0.387]
[1727299084636,1.78692,2584.7,2584.3,0.387]
[1727299085026,3.2078,2584.5,2584.3,0.387]
[1727299085538,3.2078,2584.5,2584.3,0.77396]
[1727299085740,3.2078,2584.5,2584.3,0.387]
[1727299085925,3.2078,2584.5,2584.3,2.17396]
[1727299086236,3.2078,2584.5,2584.3,1.787]
[1727299086626,3.2078,2584.5,2584.3,2.17395]
[1727299088430,3.2078,2584.5,2584.3,1.787]
[1727299089040,3.2078,2584.5,2584.3,2.17396]
[1727299090030,3.2078,2584.5,2584.4,0.38695]
[1727299090242,3.2078,2584.5,2584.3,1.787]
[1727299090441,3.2078,2584.5,2584.3,2.17395]
[1727299091145,3.2078,2584.5,2584.3,2.17396]
[1727299092547,3.2078,2584.5,2584.4,0.38695]
[1727299092743,3.2078,2584.5,2584.3,1.787]
[1727299093452,3.2078,2584.5,2584.4,0.38695]
[1727299102546,3.2078,2584.5,2584.4,0.99196962]
[1727299102746,3.2078,2584.5,2584.4,2.00112256]
[1727299102946,3.2078,2584.6,2584.5,0.38692]
[1727299103151,3.9702,2584.9,2584.6,0.38691]
[1727299103649,3.9702,2584.9,2584.5,3.54728294]
[1727299104046,3.9702,2584.9,2584.5,3.16035294]
[1727299104266,3.9702,2584.9,2584.6,0.38691]
[1727299104756,3.2078,2584.9,2584.8,1.4]
[1727299105057,3.2078,2584.9,2584.7,1.7869]
[1727299105653,3.2078,2584.9,2584.7,1.78689]
[1727299105849,3.2078,2584.9,2584.7,1.4]
[1727299106050,3.2078,2584.9,2584.7,1.78689]
[1727299106446,3.2078,2584.9,2584.7,1.4]
[1727299106755,3.2078,2584.9,2584.8,0.38689]
[1727299107056,3.2078,2584.9,2584.7,1.7869]
[1727299107550,3.2078,2584.9,2584.7,1.4]
[1727299107755,3.2078,2584.9,2584.7,1.78689]
[1727299109959,3.2078,2584.9,2584.7,1.7869]
[1727299113255,3.2078,2584.8,2584.7,1.7869]
[1727299114653,4.17233061,2585.0,2584.7,1.7869]
[1727299115356,3.2078,2584.8,2584.7,1.7869]
[1727299116162,3.2078,2584.8,2584.5,0.7512]
[1727299116371,3.2078,2584.8,2584.5,1.13813]
[1727299116372,0.8026,2584.7,2584.5,1.13813]
[1727299116759,0.8026,2584.7,2584.6,0.38692]
[1727299116959,0.8026,2584.7,2584.5,1.13813]
[1727299117462,3.2078,2584.8,2584.6,0.38692]
[1727299117661,3.59469,2584.8,2584.6,0.38692]
[1727299118170,3.2078,2584.8,2584.7,0.38691]
[1727299118464,3.59469,2584.8,2584.7,0.38691]
[1727299118874,3.2078,2584.8,2584.7,0.38691]
[1727299119262,3.2078,2584.8,2584.6,0.38692]
[1727299120270,3.5947,2584.8,2584.6,0.38692]
[1727299121460,3.5947,2584.8,2584.6,0.38691]
[1727299121666,3.2078,2584.8,2584.7,0.38691]
[1727299123565,3.2078,2584.8,2584.7,0.78571]
[1727299125575,0.38687,2585.0,2584.8,0.38689]
[1727299125776,0.38687,2585.0,2584.8,0.77569]
[1727299126277,3.2078,2584.9,2584.8,0.77569]
[1727299126979,3.59468,2584.9,2584.7,0.3988]
[1727299127170,0.3957,2584.8,2584.7,0.3988]
[1727299127679,0.78259,2584.8,2584.7,0.3988]
[1727299127870,0.3957,2584.8,2584.7,0.3988]
[1727299128075,1.16539,2584.8,2584.7,0.3988]
[1727299128377,0.7785,2584.8,2584.7,0.3988]
[1727299128566,1.16539,2584.8,2584.7,0.3988]
[1727299128767,1.16539,2584.8,2584.6,0.77572]
[1727299128972,1.53829,2584.8,2584.6,0.77572]
[1727299130269,1.16539,2584.8,2584.6,0.77572]
[1727299131179,0.38689,2584.8,2584.6,0.77572]
[1727299131365,0.38689,2584.8,2584.7,0.3943]
[1727299132479,0.38689,2584.8,2584.7,0.78121]
[1727299132670,3.59469,2584.8,2584.7,0.78121]
[1727299133987,3.2078,2584.8,2584.7,0.78121]
[1727299134173,3.59469,2584.8,2584.7,0.78121]
[1727299135576,0.38689,2584.8,2584.7,0.78121]
[1727299135783,3.59469,2584.8,2584.7,0.78121]
[1727299136383,3.2078,2584.8,2584.7,0.78121]
[1727299137283,3.59469,2584.8,2584.7,0.78121]
[1727299137490,3.2078,2584.8,2584.7,0.78121]
[1727299138387,0.38689,2584.9,2584.7,0.78121]
[1727299138782,3.59469,2584.8,2584.7,0.78121]
[1727299139582,3.2078,2584.8,2584.7,0.78121]
[1727299141586,1.8904,2585.2,2584.7,0.78121]
[1727299141587,0.08325001,2585.2,2585.1,0.38685]
[1727299141887,0.08325001,2585.2,2585.1,13.41572792]
[1727299142184,0.08325001,2585.2,2585.1,18.29456714]
[1727299142382,1.0566,2585.7,2585.2,3.868]
[1727299142383,0.27,2585.7,2585.2,3.868]
[1727299142582,0.4059,2585.6,2585.4,1.7868]
[1727299142781,0.4059,2585.6,2585.4,1.4]
[1727299143088,0.4059,2585.6,2585.5,0.38679]
[1727299144686,0.79268,2585.6,2585.3,0.849]
[1727299144883,1.8059,2585.6,2585.3,0.849]
[1727299145083,0.4059,2585.6,2585.3,0.849]
[1727299145290,0.4059,2585.6,2585.4,0.77659]
[1727299145591,0.4059,2585.6,2585.4,0.3898]
[1727299145981,0.4059,2585.6,2585.4,0.7766]
[1727299146186,0.4059,2585.6,2585.5,0.38679]
[1727299146386,0.7739,2585.7,2585.6,0.38677]
[1727299146387,0.3807,2585.7,2585.6,0.38677]
[1727299146686,3.2078,2585.9,2585.6,0.38677]
[1727299146884,0.76035,2585.8,2585.5,1.78678]
[1727299147082,0.76035,2585.8,2585.5,1.23578]
[1727299147590,3.2078,2585.9,2585.5,1.4]
[1727299147797,3.2078,2585.9,2585.6,1.7913]
[1727299148183,0.3736,2586.0,2585.9,0.38673]
[1727299148591,0.3736,2586.0,2585.9,0.76613]
[1727299148892,0.3736,2586.0,2585.9,0.3794]
[1727299149990,0.3736,2586.0,2585.9,0.76613]
[1727299150188,0.27,2586.3,2585.9,5.0956]
[1727299150394,0.38668,2586.2,2586.0,1.78671]
[1727299150688,3.6161,2586.4,2586.0,1.4]
[1727299150884,0.38667,2586.3,2586.0,1.7867]
[1727299152490,0.38667,2586.3,2586.0,1.4]
[1727299152883,0.38667,2586.3,2586.0,1.78671]
[1727299153089,0.38667,2586.3,2586.0,1.4]
[1727299153793,0.38668,2586.2,2586.0,1.4]
[1727299157994,0.38668,2586.2,2586.0,5.6661]
[1727299158192,0.38668,2586.3,2586.0,6.05281]
[1727299158388,0.38668,2586.3,2586.0,2.18561]
[1727299158588,3.6161,2586.4,2586.0,1.7989]
[1727299158589,0.38669,2586.2,2586.0,1.7989]
[1727299159100,0.38669,2586.2,2586.0,5.6661]
[1727299159298,0.38669,2586.2,2586.0,1.7989]
[1727299159502,0.3867,2586.1,2586.0,1.7989]
[1727299159901,0.3867,2586.1,2586.0,5.6661]
[1727299160896,0.3867,2586.1,2586.0,1.7989]
[1727299161107,0.38669,2586.2,2586.0,5.6661]
[1727299161298,0.38669,2586.2,2586.0,1.7989]
[1727299162816,0.38669,2586.2,2586.0,1.4]
[1727299163006,0.38669,2586.2,2586.0,2.248]
[1727299163909,0.38669,2586.2,2586.0,0.848]
[1727299164106,0.38671,2586.0,2585.9,0.3794]
[1727299164313,0.38673,2585.9,2585.8,0.848]
[1727299164613,0.38673,2585.9,2585.8,1.2363]
[1727299164614,0.76153,2585.9,2585.8,1.2363]
[1727299165419,0.3748,2585.9,2585.8,1.2363]
[1727299166408,0.76153,2585.9,2585.8,1.2363]
[1727299168820,0.3748,2585.9,2585.8,3.02304]
[1727299169412,0.3748,2585.9,2585.8,6.89024]
[1727299169613,0.38672,2586.0,2585.8,6.44874]
[1727299169814,0.75892,2586.0,2585.8,3.42954]
[1727299170620,0.75892,2586.0,2585.8,3.0428]
[1727299171015,0.75892,2586.0,2585.8,3.42954]
[1727299172612,0.3722,2586.0,2585.8,3.42954]
[1727299174220,1.14451,2586.1,2585.8,3.42954]
[1727299175913,1.14451,2586.1,2585.8,3.02304]
[1727299176614,0.7578,2586.1,2585.9,0.38673]
[1727299177016,0.7578,2586.1,2585.9,0.75583]
[1727299177523,0.3816,2586.1,2586.0,1.78671]
[1727299177725,0.79029,2586.2,2586.0,1.4]
[1727299178121,0.79029,2586.2,2586.1,0.4056]
[1727299179017,0.4036,2586.2,2586.1,0.4056]
[1727299179212,0.79028,2586.2,2586.1,0.4056]
[1727299185133,0.79028,2586.2,2585.9,1.60382]
[1727299185134,0.3867,2586.1,2585.9,2.6171]
[1727299185428,0.4074,2586.0,2585.9,2.248]
[1727299185623,0.4074,2586.0,2585.9,2.63473]
[1727299186127,0.4074,2586.0,2585.9,1.4]
[1727299186332,0.4074,2586.0,2585.9,1.78673]
[1727299187926,3.2078,2586.3,2586.0,0.3867]
[1727299188128,3.59448,2586.3,2586.1,2.1798]
[1727299188328,3.59448,2586.3,2586.1,2.5726]
[1727299190636,0.38668,2586.2,2586.1,0.3928]
[1727299190827,0.38668,2586.2,2586.0,1.4]
[1727299191027,1.1638,2586.1,2586.0,1.4]
[1727299192331,1.1638,2586.1,2585.9,1.76785922]
[1727299193438,1.1638,2586.1,2585.9,1.38113922]
[1727299193733,1.5505,2586.1,2585.9,1.01083922]
[1727299194839,1.1638,2586.1,2585.9,1.01083922]
[1727299195138,3.2078,2586.0,2585.6,3.25883922]
[1727299195333,3.2078,2586.0,2585.7,1.7866]
[1727299195637,3.2078,2586.0,2585.8,0.38674]
[1727299195943,3.2078,2586.0,2585.7,2.17335]
[1727299196133,3.59451,2586.0,2585.7,2.17335]
[1727299200440,0.38673,2585.9,2585.7,1.7866]
[1727299200643,0.38673,2585.9,2585.7,0.3866]
[1727299200844,0.3807,2585.8,2585.6,2.79760922]
[1727299201039,0.7618,2585.7,2585.6,2.79760922]
[1727299201241,0.7618,2585.7,2585.6,2.41083922]
[1727299201439,0.7618,2585.7,2585.6,2.79760922]
[1727299201740,0.7618,2585.7,2585.6,1.78677]
[1727299203940,0.7618,2585.7,2585.6,1.4]
[1727299204644,0.7618,2585.7,2585.6,1.78677]
[1727299205639,1.14856,2585.7,2585.6,1.4]
[1727299205845,1.14856,2585.7,2585.5,0.38678]
[1727299206346,0.7618,2585.7,2585.6,0.38677]
[1727299209244,0.38678,2585.6,2585.4,1.62959]
[1727299209552,0.38678,2585.6,2585.4,0.78159]
[1727299209855,0.3869,2585.5,2585.4,2.29791752]
[1727299210048,0.3869,2585.5,2585.4,4.26377242]
[1727299210236,0.77369,2585.5,2585.4,3.27221284]
[1727299210643,0.77369,2585.5,2585.4,1.40472416]
[1727299210854,0.77369,2585.5,2585.4,0.7816]
[1727299212147,0.77369,2585.5,2585.4,0.3948]
[1727299213148,0.77369,2585.5,2585.3,4.21772416]
[1727299213149,0.3868,2585.4,2585.3,4.21772416]
[1727299213457,0.3868,2585.4,2585.3,4.60454416]
[1727299213653,0.3868,2585.4,2585.3,3.59462]
[1727299214454,0.7737,2585.5,2585.3,3.59462]
[1727299214660,0.3869,2585.5,2585.2,1.00992416]
[1727299214852,0.38682,2585.3,2585.1,1.77466416]
[1727299215155,2.75388,2585.5,2585.1,0.3779]
[1727299215156,0.38683,2585.2,2585.1,0.3779]
[1727299215355,1.55253,2585.2,2585.1,0.76475]
[1727299215749,0.38685,2585.1,2585.0,1.00992416]
[1727299215943,0.38685,2585.1,2584.7,1.77472416]
[1727299216147,6.4337,2585.2,2584.7,0.3779]
[1727299216148,1.4,2585.0,2584.7,0.3779]
[1727299216352,1.4,2585.0,2584.5,3.25692416]
[1727299216353,0.3869,2584.8,2584.5,0.38694]
[1727299216548,0.7756,2584.7,2584.5,0.3992]
[1727299216748,1.1537,2584.7,2584.5,0.78613]
[1727299218252,1.1537,2584.7,2584.5,0.3992]
[1727299218453,0.38692,2584.6,2584.3,0.38696]
[1727299219252,0.38692,2584.6,2584.3,3.59476]
[1727299219451,0.38692,2584.6,2584.4,0.38695]
[1727299219652,0.38692,2584.6,2584.3,0.38696]
[1727299219857,0.38692,2584.6,2584.4,0.38695]
[1727299220158,1.54062,2584.7,2584.4,0.38695]
[1727299220457,2.121,2584.7,2584.2,3.607]
[1727299220663,1.4,2584.5,2584.2,3.607]
[1727299220953,0.38695,2584.4,2584.2,3.607]
[1727299221153,0.7778,2584.3,2584.2,3.607]
[1727299221354,1.1607,2584.3,2584.2,3.607]
[1727299222249,1.54767,2584.3,2584.2,3.2078]
[1727299222450,5.7685,2584.3,2583.8,0.4065]
[1727299222764,0.387,2584.1,2583.9,0.77291]
[1727299224572,0.38701,2584.0,2583.9,0.3859]
[1727299225853,5.7685,2584.3,2583.9,0.3859]
[1727299226050,1.78701,2584.1,2583.9,0.3859]
[1727299227262,1.78701,2584.1,2583.9,0.77293]
[1727299232857,1.4,2584.0,2583.7,3.5797]
[1727299233057,1.4,2584.0,2583.8,0.38704]
[1727299233058,2.1911,2583.9,2583.8,0.38704]
[1727299233261,2.5743,2583.9,2583.7,0.369]
[1727299233554,2.5743,2583.9,2583.8,0.38704]
[1727299236369,1.1743,2583.9,2583.8,0.38704]
[1727299236758,1.4,2584.1,2584.0,0.38701]
[1727299236968,1.4,2584.1,2583.9,0.38702]
[1727299236969,1.787,2584.1,2583.9,0.38702]
[1727299237368,1.4,2584.1,2583.7,0.7384]
[1727299237568,1.4,2584.1,2583.9,0.38702]
[1727299238167,1.787,2584.1,2583.9,0.38702]
[1727299242175,1.787,2584.1,2583.8,0.38703]
[1727299245576,1.787,2584.1,2583.9,0.38703]
[1727299246077,1.787,2584.1,2583.8,0.38703]
[1727299246669,0.38701,2584.0,2583.8,0.38703]
[1727299250972,1.4,2584.0,2583.8,0.38703]
[1727299251172,1.78701,2584.0,2583.8,0.38703]
[1727299252974,1.4,2584.0,2583.9,0.38703]
[1727299253173,1.78701,2584.0,2583.8,0.38703]
[1727299253370,1.78701,2584.0,2583.7,0.7384]
[1727299253371,1.4,2584.0,2583.9,0.38703]
[1727299253575,1.4,2584.1,2583.9,0.38703]
[1727299253983,1.4,2584.1,2584.0,0.3763]
[1727299255374,1.787,2584.1,2584.0,0.3763]
[1727299266090,1.787,2584.1,2584.0,1.38622416]
[1727299266389,1.787,2584.1,2584.0,0.3763]
[1727299266585,4.9948,2584.1,2584.0,0.3763]
[1727299266892,4.9948,2584.1,2584.0,1.38622416]
[1727299268592,4.9948,2584.1,2584.0,1.00992416]
[1727299271682,4.9948,2584.1,2584.0,1.61506439]
[1727299273284,4.9948,2584.1,2584.0,1.6150722]
[1727299274290,4.9948,2584.1,2584.0,2.98115707]
[1727299274485,4.9948,2584.1,2584.0,1.6150722]
[1727299274691,4.9948,2584.1,2584.0,2.98114573]
[1727299274890,4.9948,2584.1,2584.0,1.6150722]
[1727299275077,4.9948,2584.1,2584.0,2.9812296]
[1727299275282,4.9948,2584.1,2584.0,1.6150722]
[1727299276190,4.9948,2584.1,2584.0,2.98137082]
[1727299276492,4.9948,2584.1,2584.0,2.98136971]
[1727299277093,4.9948,2584.1,2584.0,3.48777307]
[1727299280886,4.9948,2584.1,2584.0,2.88262503]
[1727299281092,4.9948,2584.1,2584.0,3.48778574]
[1727299281385,4.9948,2584.1,2584.0,2.88264647]
[1727299281590,4.9948,2584.1,2584.0,3.48779676]
[1727299281895,4.9948,2584.1,2584.0,1.97146924]
[1727299282402,4.9948,2584.1,2584.0,3.48779676]
[1727299282589,4.9948,2584.1,2584.0,1.97146924]
[1727299282899,4.9948,2584.1,2584.0,3.48779676]
[1727299284703,4.9948,2584.1,2584.0,1.97146924]
[1727299285005,4.9948,2584.1,2584.0,3.48779676]
[1727299285995,4.9948,2584.1,2584.0,1.97140917]
[1727299286496,4.9948,2584.1,2584.0,2.98507822]
[1727299286690,4.9948,2584.1,2584.0,1.97140917]
[1727299287092,4.9948,2584.1,2584.0,3.48773669]
[1727299288192,4.9948,2584.1,2584.0,2.9852136]
[1727299288491,4.9948,2584.1,2584.0,1.97142174]
[1727299288687,4.9948,2584.1,2584.0,2.98523511]
[1727299289099,4.9948,2584.1,2584.0,1.97142174]
[1727299289294,4.9948,2584.1,2584.0,2.98520028]
[1727299289799,4.9948,2584.1,2584.0,3.48774926]
[1727299290198,4.9948,2584.1,2584.0,2.98521983]
[1727299290501,4.9948,2584.1,2584.0,2.98521645]
[1727299291001,4.9948,2584.1,2584.0,2.98544351]
[1727299291998,4.9948,2584.1,2584.0,1.61896018]
[1727299292199,1.787,2584.1,2584.0,1.6189659]
[1727299292398,1.787,2584.1,2584.0,1.01379471]
[1727299292603,1.787,2584.1,2584.0,1.61896591]
[1727299293396,1.787,2584.1,2584.0,0.6051712]
[1727299294498,1.787,2584.1,2584.0,1.61886636]
[1727299300497,1.787,2584.1,2584.0,2.98566037]
[1727299301405,1.787,2584.1,2584.0,1.97196521]
[1727299303012,1.787,2584.1,2584.0,1.36679401]
[1727299303202,1.787,2584.1,2584.0,1.97194656]
[1727299305604,1.787,2584.1,2584.0,3.4924893]
[1727299306511,1.787,2584.1,2584.0,1.97194656]
[1727299306715,1.787,2584.1,2584.0,1.97195181]
[1727299307010,1.787,2584.1,2584.0,1.6188151]
[1727299307311,1.787,2584.1,2584.0,1.61881812]
[1727299310313,1.787,2584.1,2584.0,2.38029019]
[1727299310620,1.787,2584.1,2584.0,2.98543421]
[1727299310915,1.787,2584.1,2584.0,1.61880132]
[1727299312107,1.787,2584.1,2584.0,2.98541877]
[1727299312712,1.787,2584.1,2584.0,1.61880132]
[1727299313820,1.787,2584.1,2584.0,1.0136573]
[1727299314121,1.787,2584.1,2584.0,1.61882841]
[1727299314318,2.7545,2584.1,2584.0,1.61882841]
[1727299314618,0.38703,2583.9,2583.8,1.0136573]
[1727299314815,0.38703,2583.9,2583.8,2.98591932]
[1727299315122,0.38703,2583.9,2583.8,1.61886659]
[1727299315321,0.38703,2583.9,2583.7,1.01386263]
[1727299315322,3.8704,2583.8,2583.7,1.01386263]
[1727299315619,3.8704,2583.8,2583.0,3.04108549]
[1727299315620,0.38715,2583.1,2583.0,0.3882]
[1727299315820,8.50436496,2583.1,2583.0,0.3882]
[1727299316119,5.96282,2583.1,2583.0,0.3882]
[1727299316517,0.3872,2582.8,2582.6,0.3937]
[1727299316818,1.4,2582.7,2582.6,0.3937]
[1727299318121,1.78721,2582.7,2582.6,0.3937]
[1727299318312,1.78721,2582.7,2582.5,0.7647]
[1727299319825,1.4,2582.7,2582.5,0.7647]
[1727299320223,1.78722,2582.7,2582.5,0.7647]
[1727299321114,0.38722,2582.6,2582.5,0.7647]
[1727299321318,1.78722,2582.7,2582.5,0.7647]
[1727299321814,1.4,2582.7,2581.9,3.2078]
[1727299322023,0.38728,2582.3,2582.1,0.3947]
[1727299322330,0.38728,2582.2,2582.1,0.3947]
[1727299322719,0.38727,2582.3,2582.1,0.3947]
[1727299324822,0.38726,2582.4,2582.1,0.3947]
[1727299325029,1.4,2582.2,2582.1,0.3947]
[1727299327625,1.4,2582.2,2582.1,0.782]
[1727299328434,1.4,2582.2,2582.1,0.3947]
[1727299331325,3.2078,2582.4,2582.1,10.2675]
[1727299331521,1.4,2582.6,2582.3,0.38727]
[1727299331723,1.4,2582.6,2582.5,0.38724]
[1727299336729,1.4,2582.7,2582.6,0.38722]
[1727299336927,1.4,2582.7,2582.6,1.19562]
[1727299342434,1.4,2582.7,2582.6,0.8084]
[1727299343525,3.2078,2582.8,2582.6,0.8084]
[1727299344329,3.2078,2582.8,2582.6,1.19562]
[1727299345337,3.2078,2582.8,2582.6,1.19561]
[1727299345735,3.2078,2582.8,2582.7,0.38721]
[1727299345938,3.2078,2582.8,2582.6,1.19561]
[1727299346242,3.2078,2582.8,2582.6,0.8084]
[1727299346841,3.59499,2582.8,2582.6,0.8084]
[1727299347039,3.59499,2582.8,2582.7,0.4022]
[1727299347253,3.2078,2582.8,2582.7,0.4022]
[1727299349546,3.59499,2582.8,2582.7,0.4022]
[1727299350745,3.2078,2582.8,2582.7,0.4022]
[1727299358658,3.2078,2582.8,2582.7,0.78941]
[1727299359747,3.2078,2582.8,2582.7,0.4022]
[1727299360350,3.2078,2582.8,2582.7,0.78941]
[1727299361450,3.2078,2582.8,2582.7,0.4022]
[1727299362049,3.2078,2582.8,2582.7,0.78941]
[1727299362446,3.2078,2582.8,2582.7,0.4022]
[1727299363054,3.2078,2582.8,2582.7,0.78941]
[1727299363255,3.2078,2582.8,2582.7,0.4022]
[1727299366257,3.2078,2582.8,2582.7,0.78941]
[1727299367359,3.2078,2582.8,2582.7,0.4022]
[1727299367560,3.2078,2582.8,2582.7,0.78941]
[1727299369251,3.2078,2582.8,2582.7,0.4022]
[1727299371359,3.2078,2582.8,2582.7,0.78941]
[1727299372862,3.2078,2582.8,2582.7,0.4022]
[1727299374555,3.2078,2582.8,2582.7,0.78941]
[1727299374754,3.2078,2582.8,2582.7,0.4022]
[1727299375165,3.59499,2582.8,2582.7,0.4022]
[1727299375861,3.59499,2582.8,2582.7,0.78941]
[1727299375862,3.2078,2582.8,2582.7,0.78941]
[1727299376055,3.2078,2582.8,2582.7,1.72230361]
[1727299376364,3.2078,2582.8,2582.7,3.84759849]
[1727299376764,3.2078,2582.8,2582.7,4.23479893]
[1727299376965,3.2078,2582.8,2582.7,2.71494267]
[1727299377164,3.2078,2582.8,2582.7,4.23479893]
[1727299378463,2.4171575,2582.9,2582.7,4.23479893]
[1727299378763,2.4171575,2582.9,2582.8,0.60543862]
[1727299379359,2.4171575,2582.9,2582.8,0.6054403]
[1727299379558,2.0299775,2582.9,2582.8,0.6054403]
[1727299380366,2.4171575,2582.9,2582.8,0.6054403]
[1727299380562,2.0299775,2582.9,2582.8,0.6054403]
[1727299381769,2.0299775,2582.9,2582.8,0.9926303]
[1727299382067,5.2377775,2583.0,2582.8,2.31318007]
[1727299382366,2.03250609,2582.9,2582.7,0.7894]
[1727299382573,2.03250609,2582.9,2582.8,0.99261974]
[1727299383967,2.03250609,2582.9,2582.8,0.60542974]
[1727299384660,2.03250609,2582.9,2582.8,0.99261974]
[1727299384997,2.03250609,2582.9,2582.8,0.60542974]
[1727299385158,2.03250609,2582.9,2582.8,0.60542977]
[1727299385364,2.03250609,2582.9,2582.7,0.78939]
[1727299385567,2.03250609,2582.9,2582.8,0.38719]
[1727299385879,2.03250609,2582.9,2582.8,0.99262628]
[1727299386371,2.03250609,2582.9,2582.8,0.60543628]
[1727299388871,2.03250609,2582.9,2582.8,0.99262628]
[1727299389073,2.03250609,2582.9,2582.8,0.60543628]
[1727299389267,5.62746609,2583.0,2582.8,0.60543628]
[1727299389570,5.62746609,2583.0,2582.9,0.60543628]
[1727299390073,5.24030609,2583.0,2582.9,0.60543628]
[1727299392064,5.24030609,2583.0,2582.9,0.60543137]
[1727299392466,2.03250609,2583.0,2582.9,0.60543137]
[1727299392670,5.24030609,2583.0,2582.9,0.60543137]
[1727299395670,5.24030609,2583.0,2582.7,2.30924626]
[1727299395865,5.24030609,2583.0,2582.8,1.32033743]
[1727299396174,5.24030609,2583.0,2582.9,0.60542926]
[1727299398476,5.24030609,2583.0,2582.9,0.99260926]
[1727299399071,5.24030609,2583.0,2582.9,1.96126646]
[1727299399273,5.24030609,2583.0,2582.9,0.38718]
[1727299399472,5.24030609,2583.0,2582.9,1.57407136]
[1727299399675,5.24030609,2583.0,2582.9,0.60541206]
[1727299402979,5.24030609,2583.0,2582.9,1.57408808]
[1727299403194,5.24030609,2583.0,2582.8,0.38718]
[1727299403577,5.24030609,2583.0,2582.9,1.57409746]
[1727299404379,2.41150609,2583.1,2582.9,2.89418535]
[1727299404581,2.41150609,2583.1,2583.0,0.60540228]
[1727299404877,2.4114914,2583.1,2583.0,0.60540228]
[1727299405079,2.7986414,2583.1,2583.0,0.60540228]
[1727299405381,0.76615,2583.1,2583.0,0.60540228]
[1727299405977,2.41153394,2583.1,2583.0,0.60540228]
[1727299406685,0.379,2583.1,2583.0,0.60540228]
[1727299408584,2.41162888,2583.1,2583.0,0.60540228]
[1727299409182,0.379,2583.1,2583.0,0.60540228]
[1727299410883,2.41176789,2583.1,2583.0,0.60540228]
[1727299411089,0.379,2583.1,2583.0,0.60540228]
[1727299412396,2.91638058,2583.1,2583.0,0.60540228]
[1727299413395,0.379,2583.1,2583.0,0.60540228]
[1727299414096,2.92017522,2583.1,2583.0,0.60540228]
[1727299415494,3.30732522,2583.1,2583.0,0.60540228]
[1727299415897,0.76615,2583.1,2583.0,0.60540228]
[1727299417094,0.76615,2583.1,2583.0,0.60540652]
[1727299418402,2.9202645,2583.1,2583.0,0.60540652]
[1727299418603,2.9202645,2583.1,2583.0,1.57405405]
[1727299419512,2.4119544,2583.1,2583.0,1.57405405]
[1727299419912,2.4119544,2583.1,2583.0,1.94515405]
[1727299420305,2.4119544,2583.1,2583.0,2.34915405]
[1727299420803,2.4119544,2583.1,2583.0,2.34914582]
[1727299421205,2.0329544,2583.1,2583.0,2.34914582]
[1727299421413,2.0329544,2583.1,2583.0,5.94542876]
[1727299421606,3.2078,2583.2,2583.0,5.94542876]
[1727299421607,5.2407544,2583.2,2583.0,5.94542876]
[1727299421809,5.2407544,2583.2,2583.1,1.57404582]
[1727299422415,5.2407544,2583.2,2583.1,1.57396584]
[1727299422912,5.2407544,2583.2,2583.1,0.60540224]
[1727299424609,5.2407544,2583.2,2583.1,0.60535734]
[1727299427402,2.0329544,2583.2,2583.1,0.60535734]
[1727299428105,2.0329544,2583.2,2583.0,2.66395626]
[1727299428306,2.0329544,2583.2,2583.0,3.05111626]
[1727299428605,2.0329544,2583.2,2583.1,0.60535497]
[1727299431714,2.0329544,2583.2,2583.0,1.53126]
[1727299431908,2.0329544,2583.2,2583.1,0.60535666]
[1727299432118,2.0329544,2583.2,2583.0,1.1441]
[1727299432307,2.0329544,2583.2,2583.0,1.53126]
[1727299432508,2.0329544,2583.2,2583.1,0.60535663]
[1727299432709,5.6278744,2583.3,2583.1,0.60535663]
[1727299432914,2.0329544,2583.2,2583.0,1.53126]
[1727299433116,2.0329544,2583.2,2583.1,0.60535629]
[1727299434318,5.6278744,2583.3,2583.1,0.60535629]
[1727299434519,5.6278744,2583.3,2583.0,1.53126]
[1727299434520,6.1361845,2583.3,2583.0,1.53126]
[1727299434815,6.1361845,2583.3,2583.1,0.60535615]
[1727299435004,6.1361845,2583.3,2583.0,1.53126]
[1727299435208,2.03176622,2583.1,2583.0,1.53126]
[1727299435413,2.03176622,2583.1,2583.0,2.13661413]
[1727299436021,2.03176622,2583.1,2583.0,3.14965425]
[1727299436317,2.03176622,2583.2,2583.0,4.11821973]
[1727299436521,2.03176622,2583.2,2583.1,0.60535413]
[1727299436719,5.7490645,2583.3,2583.1,0.60535413]
[1727299436915,6.1361845,2583.3,2583.2,0.60535413]
[1727299438016,2.9283845,2583.3,2583.2,0.60535413]
[1727299438926,2.9283845,2583.3,2583.0,2.54430012]
[1727299439228,2.03171244,2583.1,2583.0,1.53126]
[1727299439523,2.03171244,2583.1,2583.0,4.11821931]
[1727299440026,2.03171244,2583.2,2583.0,4.11821931]
[1727299440217,2.9283845,2583.3,2583.1,0.60535353]
[1727299440414,2.9283845,2583.3,2583.2,0.60535353]
[1727299441016,3.3123845,2583.3,2583.2,0.60535353]
[1727299441618,2.9252645,2583.3,2583.2,0.60535353]
[1727299442621,2.41578863,2583.3,2583.2,0.60534827]
[1727299442827,2.80290863,2583.3,2583.2,0.60534827]
[1727299443719,2.41578863,2583.3,2583.2,0.60534827]
[1727299444725,2.41578863,2583.3,2583.1,1.40018012]
[1727299449734,2.9252645,2583.3,2583.1,0.38714]
[1727299450631,2.9252645,2583.3,2583.0,2.54429012]
[1727299450836,2.03203061,2583.1,2583.0,2.54429012]
[1727299451036,2.03203061,2583.1,2583.0,3.14963965]
[1727299451835,2.03203061,2583.2,2583.1,0.38715]
[1727299452037,2.03203061,2583.2,2583.1,1.96106353]